Cogmind - Beta 13 @@@ ROGUE MODE // 2024.04.22 @ 08:27:11 Player: Oldman Pu Result: Destroyed by TV-G4S(R) with Subdweller Laser Performance ------------- Evolutions (0) 0 Regions Visited (2) 400 Robots Destroyed (30) 150 Value Destroyed (710) 710 Prototype IDs (10) 200 Alien Tech Used (0) 0 Bonus (0) 0 TOTAL SCORE: 1460 Bonus ------- None Cogmind --------- Core Integrity 0/250 Matter 278/300 Energy 250/250 System Corruption 0% Temperature Cool (6) Movement Rolling (115) Ox1 Location -10/Subcaves Parts ------- > --- POWER (1) -------- Ion Engine > --- PROPULSION (2) --- Compact Wheel Compact Wheel > --- UTILITY (2) ------ High-capacity Storage Unit Makeshift Light Armor Plating > --- WEAPON (2) ------- Medium Laser Heavy Battle Rifle > --- INVENTORY (20) --- Ion Engine Ion Engine Wheel Subdweller Monowheel Heat Sink High-capacity Storage Unit Light Armor Plating Light Armor Plating Makeshift Light Armor Plating Riot Gun Beam Rifle Subdweller Laser Subdweller Laser Assault Rifle Assault Rifle Assault Rifle Light Assault Rifle Battle Rifle Subdweller Machine Gun Subdweller Machine Gun Peak State ------------ > --- POWER ------------ Ion Engine > --- PROPULSION ------- Compact Wheel Compact Wheel > --- UTILITY ---------- High-capacity Storage Unit Makeshift Light Armor Plating > --- WEAPON ----------- Subdweller Beam Cannon Heavy Battle Rifle > --- INVENTORY -------- Ion Engine Ion Engine Wheel Subdweller Monowheel Heat Sink High-capacity Storage Unit Light Armor Plating Light Armor Plating Light Armor Plating Riot Gun Medium Laser Subdweller Laser Subdweller Laser Assault Rifle Assault Rifle Assault Rifle Light Assault Rifle Battle Rifle Subdweller Machine Gun Subdweller Machine Gun [Rating: 16] Favorites ----------- Power Ion Engine Engine Ion Engine Propulsion Compact Wheel Wheel Compact Wheel Utility High-capacity Storage Unit Storage High-capacity Storage Unit Protection Light Armor Plating Weapon Assault Rifle Energy Gun Medium Laser Energy Cannon Subdweller Beam Cannon Ballistic Gun Assault Rifle Special Weapon Mining Laser Build | -11 -10 -10 ------- Run | Yrd Mat Sub Slots Evolved . | . . . Power . | . . . Propulsion . | . . . Utility . | . . . Weapon . | . . . Parts Attached 35 | 6 16 13 Power 5 | 1 2 2 Engine 5 | 1 2 2 Core . | . . . Reactor . | . . . Propulsion 8 | 2 4 2 Treads . | . . . Leg . | . . . Wheel 8 | 2 4 2 Hover . | . . . Flight . | . . . Utility 8 | 1 4 3 Device . | . . . Storage 3 | 1 2 . Processor . | . . . Hackware . | . . . Protection 5 | . 2 3 Artifact . | . . . Weapon 14 | 2 6 6 Energy Gun 1 | . . 1 Energy Cannon 2 | . . 2 Ballistic Gun 10 | 2 5 3 Ballistic Cannon . | . . . Launcher . | . . . Special Weapon 1 | . 1 . Impact Weapon . | . . . Slashing Weapon . | . . . Piercing Weapon . | . . . Special Melee Weapon . | . . . Unidentified Prototypes . | . . . Parts Lost 8 | . 6 2 Power 1 | . 1 . Propulsion 3 | . 2 1 Utility 1 | . . 1 Weapon 3 | . 3 . Highest Loss Streak 3 | . 3 2 To Critical Strikes . | . . . Average Slot Usage (%) 96 | . 92 99 Engine 13 | . 13 14 Wheel 26 | . 23 27 Storage 14 | . 15 14 Protection 12 | . 9 13 Energy Cannon 6 | . . 11 Ballistic Gun 20 | . 27 14 Naked Turns . | . . . Heaviest Build 61 | 13 52 61 Greatest Support 32 | 32 32 32 Greatest Overweight (x) 3 | . 1 3 Average Overweight (x) . | . . 1 Largest Inventory Capacity 20 | 8 20 20 Average Capacity 16 | 6 13 20 Most Carried 20 | . 17 20 Average Carried 14 | . 9 19 Final Capacity 20 | 8 20 20 Final Carried 20 | . 17 20 Class Distribution -------------------- 97% | Mutant Dominant Class ---------------- Mutant | -10/Materials Mutant | -10/Subcaves Resources | -11 -10 -10 ----------- Run | Yrd Mat Sub Matter Collected 1017 | 232 430 355 Remotely . | . . . Salvage Created 996 | . 577 419 Parts 68 | . 40 28 Haulers Intercepted 2 | . 2 . Recyclers Shooed . | . . . Parts Field Recycled . | . . . Retrieved Matter . | . . . Parts Self-Destructed 14 | . . 14 Prevented . | . . . Kills | -11 -10 -10 ------- Run | Yrd Mat Sub Combat Hostiles Destroyed 22 | . 13 9 Guns 16 | . 12 4 Cannons 5 | . 1 4 Classes Destroyed 9 | . 7 2 Worker 1 | . 1 . Builder 1 | . 1 . Hauler 2 | . 2 . Recycler 1 | . 1 . Watcher 3 | . 3 . Swarmer 7 | . 6 1 Grunt 7 | . 7 . Sentry 1 | . . 1 Subdweller 7 | . . 7 Best Kill Streak 5 | . 5 2 Combat Bots Only 3 | . 3 2 Max Kills in Single Turn 2 | . 2 1 Gunslinging 1 | . 1 . Exploded . | . . . Melee . | . . . Uniques/NPCs Destroyed . | . . . Combat | -11 -10 -10 -------- Run | Yrd Mat Sub Hostile Shots Fired 150 | . 118 32 Missed 45 | . 34 11 Damage Taken 1379 | . 818 561 Core 252 | . 175 77 Absorbed by Shields . | . . . Core Remaining (%) 100 | 100 . . Volleys Fired 149 | . 93 56 Largest 2 | . 2 2 Hottest 120 | . 120 113 Shots Fired 284 | . 174 110 Gun 243 | . 171 72 Cannon 38 | . . 38 Launcher . | . . . Special 3 | . 3 . Kinetic 236 | . 171 65 Thermal 48 | . 3 45 Explosive . | . . . Electromagnetic . | . . . Robot Hit Streak 18 | . 18 12 Robot Miss Streak 6 | . 6 2 Penetration Max . | . . . Secondary Targets 2 | . 2 . Max Gunslinging Chain 1 | . 1 . Shots Hit Robots 144 | . 105 39 Core Hits 55 | . 42 13 Critical Kills 1 | . . 1 Critical Parts Destroyed . | . . . Critical Strikes 2 | . . 2 Burn 1 | . . 1 Meltdown 1 | . . 1 Melee Attacks . | . . . Impact . | . . . Slashing . | . . . Piercing . | . . . Sneak Attacks . | . . . Combat Hostiles . | . . . Follow-up Attacks . | . . . Damage Inflicted 1811 | . 1077 734 Guns 1478 | . 1029 449 Cannons 285 | . . 285 Explosions . | . . . Melee . | . . . Ramming . | . . . Kinetic 1440 | . 1029 411 Thermal 371 | . 48 323 Explosive . | . . . Electromagnetic . | . . . Impact . | . . . Slashing . | . . . Piercing . | . . . Highest Corruption . | . . . Average Corruption . | . . . Corruption Purged . | . . . Corruption Blocked . | . . . Overload Shots . | . . . Overflow Damage . | . . . Projectiles . | . . . Explosions . | . . . Melee . | . . . Knockbacks . | . . . Impact . | . . . Kinetic . | . . . Secondary . | . . . Self-Inflicted Damage . | . . . Shots . | . . . Rammed . | . . . Targets Rammed . | . . . Kicked . | . . . Crushed . | . . . Highest Temperature 59 | . 59 49 Average Temperature 16 | . 14 18 Received Heat Transfer 327 | . 252 75 Siege Activations . | . . . Robots Corrupted . | . . . Combat Hostiles . | . . . Parts Fried . | . . . Impact Corruptions . | . . . Robots Melted 1 | . . 1 Combat Hostiles 1 | . . 1 Parts Melted 3 | . . 3 Heat Transferred 655 | . 100 555 Parts Sabotaged . | . . . Parts Stolen . | . . . Parts Stripped . | . . . Power Chain Reactions . | . . . Alert | -11 -10 -10 ------- Run | Yrd Mat Sub Peak Influence 203 | . 203 . Initial . | . . . Average 112 | . 116 . Maximum Alert Level 1 | . 1 . Low Security (%) 98 | 100 98 . Level 1 1 | . 1 . Level 2 . | . . . Level 3 . | . . . Level 4 . | . . . Level 5 . | . . . High Security . | . . . Max Security . | . . . Squads Dispatched 3 | . 3 . Investigation 1 | . 1 . Extermination . | . . . Reinforcement 2 | . 2 . Assault . | . . . Garrison . | . . . Intercept . | . . . Searches Triggered . | . . . Construction Impeded . | . . . Haulers Reinforced . | . . . Active Scanning Responses . | . . . Cargo Convoy Interrupts . | . . . Stealth | -11 -10 -10 --------- Run | Yrd Mat Sub Distress Signals 2 | . 2 . Communications Jammed . | . . . Distress Signals . | . . . Times Spotted 33 | . 23 10 Peak Tracking Total 4 | . 4 2 Tactical Retreats 2 | . 2 . Traps | -11 -10 -10 ------- Run | Yrd Mat Sub Traps Triggered 4 | . 1 3 Indirectly . | . . . Trap Hack Attempts . | . . . Triggered . | . . . Disarmed . | . . . Reprogrammed . | . . . Reused . | . . . Traps Extracted . | . . . Installed . | . . . Triggered . | . . . Machines | -11 -10 -10 ---------- Run | Yrd Mat Sub Machines Disabled 1 | . . 1 Max in Single Turn 1 | . . 1 Machines Repaired . | . . . Machines Dismantled . | . . . Machines Sabotaged . | . . . Overloaded Fab Kills . | . . . Hacking | -11 -10 -10 --------- Run | Yrd Mat Sub Machines Accessed 6 | . 5 1 Terminals 5 | . 5 . Fabricators . | . . . Repair Stations . | . . . Recycling Units . | . . . Scanalyzers . | . . . Garrison Access . | . . . Total Hacks 25 | . 16 9 Successful 21 | . 12 9 Failed 4 | . 4 . Catastrophic . | . . . Database Lockouts . | . . . Manual . | . . . Terminals 16 | . 16 . Fabricators . | . . . Repair Stations . | . . . Recycling Units . | . . . Scanalyzers . | . . . Garrison Access . | . . . Terminal Hacks 21 | . 12 9 Record 14 | . 6 8 Branch Access Points 1 | . 1 . Locate Traps 2 | . 2 . Transport Status 1 | . 1 . Hauler Manifests 2 | . 2 . Derelict Proto ID Bank 1 | . . 1 Fabricator Hacks . | . . . Repair Station Hacks . | . . . Recycling Unit Hacks . | . . . Scanalyzer . | . . . Garrison Access Hacks . | . . . Unauthorized Hacks . | . . . Terminals . | . . . Fabricators . | . . . Repair Stations . | . . . Recycling Units . | . . . Scanalyzers . | . . . Garrison Access . | . . . Data Cores Recovered . | . . . Used . | . . . Hacking Detections 2 | . 2 . Full Trace Events . | . . . Feedback Events . | . . . Feedback Blocked . | . . . Robot Schematics Acquired . | . . . Robots Built . | . . . Authchips . | . . . Time . | . . . Total Robot Build Rating . | . . . Part Schematics Acquired . | . . . Parts Built . | . . . Authchips . | . . . Time . | . . . Total Part Build Rating . | . . . Parts Repaired . | . . . Time . | . . . Parts Recycled . | . . . Recycled Matter . | . . . Retrieved Matter . | . . . Retrieved Components . | . . . Parts Scanalyzed . | . . . Part Schematics Acquired . | . . . Parts Damaged . | . . . Bothacking | -11 -10 -10 ------------ Run | Yrd Mat Sub Used RIF Installer . | . . . Robots Hacked . | . . . Non-combat . | . . . Combat . | . . . Robot Hacks Applied . | . . . Relay Couplers Released . | . . . Fabnet Peak Effective % . | . . . Robots Rewired . | . . . Allies Hacked . | . . . Hacks Repelled . | . . . Allies | -11 -10 -10 -------- Run | Yrd Mat Sub Total Allies . | . . . Largest Group . | . . . Highest-Rated Group . | . . . Highest-Rated Ally . | . . . Total Orders . | . . . Ally Attacks . | . . . Total Damage . | . . . Kills . | . . . Allies Corrupted . | . . . Allies Melted . | . . . Intel | -11 -10 -10 ------- Run | Yrd Mat Sub Robot Analysis Total . | . . . Derelict Logs Recovered 1 | . . 1 Drone Launches . | . . . Drone Recoveries . | . . . Exploration | -11 -10 -10 ------------- Run | Yrd Mat Sub Turns Passed 2446 | 36 1041 1369 Spaces Moved 1629 | 29 615 985 Core 4 | 4 . . Treads . | . . . Legs . | . . . Wheels 1625 | 25 615 985 Hover . | . . . Flight . | . . . Fastest Speed 50 | 50 90 115 Average Speed 110 | 93 105 115 Slowest Speed 145 | 100 115 145 Overloaded Moves . | . . . Propulsion Burnouts . | . . . Robots Hopped . | . . . Cave-ins Triggered . | . . . Exploration Rate (%) 53 | 3 97 59 Regions Visited 2 Branch Regions 1 Pre-discovered Areas . | . . . Known Exits Taken . | . . . Unknown Exits Taken 2 | 1 1 . Scrap Searched 17 | . . 17 Spaces Dug 3 | . . 3 Terrain Destroyed 5 | . 1 4 Melee . | . . . Projectile 5 | . 1 4 AOE . | . . . Terrain Rammed . | . . . Walls Destroyed . | . . . Machines Disabled . | . . . Actions | -11 -10 -10 --------- Run | Yrd Mat Sub Total 2002 | 34 845 1123 Wait 138 | . 104 34 Move 1627 | 28 614 985 Hop . | . . . Pick Up 31 | . 15 16 Fast Attach 13 | 6 6 1 Attach 5 | . 2 3 Detach . | . . . Swap 17 | . 8 9 Drop 22 | . 3 19 Fire 149 | . 93 56 Melee . | . . . Ram . | . . . Kick . | . . . Crush . | . . . Escape Stasis . | . . . Rewire . | . . . Trap . | . . . Miscellaneous . | . . . Route ------- -11/Scrapyard -10/Materials (discovered 5 exits: [*Mat x3] / *Min / *Sub) -10/Subcaves History --------- Turn | Location | Event 13 | -11/Scrapyard | Discovered new exit (range 16) 37 | -11/Scrapyard | Entered Materials 56 | -10/Materials | Identified exit to Mines 158 | -10/Materials | Discovered new exit (range 7) 282 | -10/Materials | Lost 3 parts (2n1w) 316 | -10/Materials | Build established: Mutant 328 | -10/Materials | Discovered new exit (range 16) 513 | -10/Materials | Core integrity fell below 50% 737 | -10/Materials | Discovered new exit (range 14) 1067 | -10/Materials | Discovered new exit (range 9) 1078 | -10/Materials | Entered Subcaves 1106 | -10/Subcaves | Disturbed a concealed Subdweller 1439 | -10/Subcaves | Shifting Twisted Machinery released Riot Gun 1497 | -10/Subcaves | Shifting Twisted Machinery released Sub. Beam Cannon 1818 | -10/Subcaves | Learned Materials stockpile data 1850 | -10/Subcaves | Visited 4L-MR0's lab 1961 | -10/Subcaves | Core integrity fell below 20% 2145 | -10/Subcaves | A swath of the cavern ceiling suddenly collapsed 2353 | -10/Subcaves | Shifting Twisted Machinery released Mak. Light Armor Plating 2371 | -10/Subcaves | Shifting Twisted Machinery released Sub. Beam Cannon 2447 | -10/Subcaves | Destroyed by TV-G4S(R) with Subdweller Laser Last Messages --------------- 02069_ Y-45 Defender destroyed. 02072_ Flight Unit fries itself beyond repair. 02076_ Lgt. Treads fries itself beyond repair. 02082_ Acquired 3 matter. 02084_ Lgt. Armor Plating fries itself beyond repair. 02085_ Dropped Sub. Laser. 02085_ Acquired Beam Rifle. A swath of the cavern ceiling suddenly collapses. 02259_ Acquired 21 matter. 02277_ Sub. Beam Cannon shoots sparks and powers down. 02284_ MQ-N19(R) suffers critical hit (Burn). 02290_ MQ-N19(R) destroyed. 02302_ Acquired 25 matter. 02304_ Dropped Broken Sub. Beam Cannon. 02305_ Acquired Sub. Laser. 02322_ Dropped Sub. Machine Gun. 02322_ Acquired Sub. Machine Gun. Mak. Light Armor Plating falls loose from the Twisted Machinery. 02370_ Dropped Lgt. Armor Plating. Sub. Beam Cannon falls loose from the Twisted Machinery. Map ----- +----------------------------------------------------+ | ???#??? ?????????????????????????????????????????? | | ?? ??# #????????????????????????????????????????? | | ### #????????????????????????????????????????? | | #####????????????????????????????????????? | | ##???????????????????????????????????? | | " ##??????????????????????????????????? | | ###?###????????????????????????????? | | ?""""???????????????????????????? | | #? " "???????????????????????????? | | # ? ## """"??????????????????????????? | | ?# #??? """??????????????????????????? | | ??? #??? "#???????????????????????????? | | ????# ##??# "#???????"???????????????????? | | ##### #### ##?????""???????????????????? | | # ## ## " ""????? " ??????????????????? | | #?? ""#??? "" ?????????????????? | | #?? ""##?? ""?????????????????? | | # # ### ##?#"" #?? "?????????????????? | | #######?## "### "###?"""??????????????????? | | ?????????## " """"#"## #??????????????????? | | ??????????## " """ #??????????????????? | | ???????????## """ #??????????????????? | | ????????????### #### ### #??????????????????? | | ??????????????####??# #??# #??????????????????? | | ???????????????????## #### #??????????????????? | | ??????????????????## # @R ##?????????????????? | | ??????????????????# #?????????????????? | | ??????????????????## ####?????????????????? | | ???????????????????# ## # #????????????????????? | | ???????????????????# ###????????????????????? | | ?????????????????? ??????????????????????? | | ???????????????? ?????????????????????? | | ?????????????? #### #????????????????????? | | ????????????? ???# ?????????????????????? | | ???????????? ????# ###????????????????????? | | ???????????% ????? ###??????????????????????? | | ???????????# ?????? ##????????????????????????? | | ???????????## ????? #??????????????????????????? | | ????????????# ?????? ???????????????????????????? | | ????????????????????? ???????????????????????????? | | ?????????????????????#???????????????????????????? | | ?????????????????????????????????????????????????? | | ?????????????????????????????????????????????????? | | ?????????????????????????????????????????????????? | | ?????????????????????????????????????????????????? | | ?????????????????????????????????????????????????? | | ?????????????????????????????????????????????????? | | ?????????????????????????????????????????????????? | | ?????????????????????????????????????????????????? | | ?????????????????????????????????????????????????? | +----------------------------------------------------+ Best States ------------- Heat Dissipation 25 Energy Generation 15 Energy Capacity 250 Matter Stores 300 Matter Capacity 450 Sight Range 16 Terrain Scan Density 10 Armor Coverage 150 Evasion (%) 42 Item Schematics ----------------- None Robot Schematics ------------------ None Fabricated ------------ Nothing Alien Tech Used ----------------- None Achievements -------------- None Challenges ------------ None Game ------ Seed InsulationLightConstruct Manual? 0 Play Time 00:26:21 Cumulative 273.4 hours Start 2024.04.22 @ 07:30:08 End 2024.04.22 @ 08:27:11 Sessions 2 Manual Loads 0 Difficulty Rogue Special Mode None Game No. 213 Rogue 201 Adventurer 12 Explorer 0 Win Type - Total 1 Types 1/0/0/0/0/0/0/0/0 Lore% 33 Gallery% 51 Achievement% 37 Wizard Run 0 Options --------- Layout 1 ASCII 0 Keyboard 0 Movement Mouse Keybinds 0 Fullscreen 1 Font 32/SmallcapsGlow Map View 77x35 Zoom Use 0% Tactical HUD 1 Map Filters NONE Filters NONE Steam 1 RUN: 80b9d78e-853b-41fd-82bb-5f960da6ab2d